[Event "December 5 Early 2023"]
[Site "https://www.chess.com"]
[Date "2023.12.05"]
[Round "7"]
[White "Shevchuk, Olexandr"]
[Black "Skibbe, Willi"]
[Result "0-1"]
[Board "152"]
[TimeControl "180+1"]
[WhiteFideId "14113775"]
[BlackFideId "4682190"]
[WhiteElo "2443"]
[BlackElo "2308"]
[WhiteTeam "UKR"]
[BlackTeam "GER"]
[WhiteClock "0:01:24"]
[BlackClock "0:00:11"]

1. d4 {[%clk 0:03:00]}  d5 {[%clk 0:02:59]} 2. c4 {[%clk 0:03:01]}  e6 {[%clk 0:02:58]} 3. Nf3 {[%clk 0:03:01]}  Nf6 {[%clk 0:02:57]} 4. g3 {[%clk 0:03:02]}  Be7 {[%clk 0:02:57]} 5. Bg2 {[%clk 0:03:02]}  O-O {[%clk 0:02:58]} 6. O-O {[%clk 0:03:03]}  c6 {[%clk 0:02:58]} 7. Qc2 {[%clk 0:03:03]}  b6 {[%clk 0:02:58]} 8. Nbd2 {[%clk 0:03:03]}  c5 {[%clk 0:02:58]} 9. cxd5 {[%clk 0:03:03]}  exd5 {[%clk 0:02:58]} 10. Rd1 {[%clk 0:03:03]}  Nc6 {[%clk 0:02:56]} 11. b3 {[%clk 0:03:03]}  Be6 {[%clk 0:02:47]} 12. Bb2 {[%clk 0:03:03]}  Rc8 {[%clk 0:02:46]} 13. Rac1 {[%clk 0:03:03]}  Nxd4 {[%clk 0:02:36]} 14. Nxd4 {[%clk 0:03:02]}  cxd4 {[%clk 0:02:35]} 15. Qd3 {[%clk 0:03:03]}  Qd7 {[%clk 0:02:16]} 16. Qxd4 {[%clk 0:03:00]}  Bc5 {[%clk 0:02:16]} 17. Qf4 {[%clk 0:02:59]}  Ng4 {[%clk 0:01:55]} 18. e3 {[%clk 0:02:59]}  Bd6 {[%clk 0:01:54]} 19. Qg5 {[%clk 0:02:50]}  f6 {[%clk 0:01:53]} 20. Qh4 {[%clk 0:02:34]}  Ne5 {[%clk 0:01:47]} 21. Nf3 {[%clk 0:02:26]}  Rxc1 {[%clk 0:01:35]} 22. Bxc1 {[%clk 0:02:26]}  Bg4 {[%clk 0:01:32]} 23. Nxe5 {[%clk 0:02:23]}  fxe5 {[%clk 0:01:27]} 24. Bxd5+ {[%clk 0:02:08]}  Kh8 {[%clk 0:01:25]} 25. Be4 {[%clk 0:02:09]}  Bf5 {[%clk 0:01:10]} 26. Bxf5 {[%clk 0:02:07]}  Qxf5 {[%clk 0:01:10]} 27. Rf1 {[%clk 0:02:02]}  Qc2 {[%clk 0:00:52]} 28. Qa4 {[%clk 0:01:39]}  a5 {[%clk 0:00:36]} 29. Ba3 {[%clk 0:01:36]}  Bxa3 {[%clk 0:00:25]} 30. Qxa3 {[%clk 0:01:37]}  Rf5 {[%clk 0:00:20]} 31. Qd6 {[%clk 0:01:36]}  h5 {[%clk 0:00:18]} 32. Qxb6 {[%clk 0:01:31]}  h4 {[%clk 0:00:18]} 33. Qd8+ {[%clk 0:01:29]}  Kh7 {[%clk 0:00:16]} 34. Qxh4+ {[%clk 0:01:30]}  Kg8 {[%clk 0:00:15]} 35. Qa4 {[%clk 0:01:31]}  e4 {[%clk 0:00:14]} 36. Qxa5 {[%clk 0:01:31]}  Rxa5 {[%clk 0:00:13]} 37. a3 {[%clk 0:01:24]}  Qxb3 {[%clk 0:00:13]} 38. Rc1 {[%clk 0:01:24]}  Rxa3 {[%clk 0:00:12]} 39. Rc8+ {[%clk 0:01:24]}  Kh7 {[%clk 0:00:13]} 40. Kg2 {[%clk 0:01:24]}  Qd1 {[%clk 0:00:12]} 41. Rf8 {[%clk 0:01:24]}  Ra1 {[%clk 0:00:11]} 0-1

[Event "December 5 Early 2023"]
[Site "https://www.chess.com"]
[Date "2023.12.05"]
[Round "7"]
[White "Matrix3x3a"]
[Black "Kleibel, Uwe"]
[Result "0-1"]
[Board "154"]
[TimeControl "180+1"]
[BlackFideId "1270982"]
[WhiteElo "2435"]
[BlackElo "2368"]
[BlackTeam "GER"]
[WhiteClock "0:00:06"]
[BlackClock "0:00:24"]

1. d4 {[%clk 0:03:00]}  d5 {[%clk 0:02:51]} 2. c4 {[%clk 0:03:01]}  e6 {[%clk 0:02:51]} 3. Nf3 {[%clk 0:03:01]}  Nf6 {[%clk 0:02:51]} 4. g3 {[%clk 0:03:02]}  Be7 {[%clk 0:02:51]} 5. Bg2 {[%clk 0:03:03]}  O-O {[%clk 0:02:52]} 6. O-O {[%clk 0:03:03]}  c6 {[%clk 0:02:52]} 7. Qc2 {[%clk 0:03:04]}  b6 {[%clk 0:02:52]} 8. Nbd2 {[%clk 0:03:04]}  Bb7 {[%clk 0:02:48]} 9. e4 {[%clk 0:03:04]}  Na6 {[%clk 0:02:48]} 10. a3 {[%clk 0:03:02]}  c5 {[%clk 0:02:46]} 11. exd5 {[%clk 0:03:00]}  exd5 {[%clk 0:02:46]} 12. dxc5 {[%clk 0:02:49]}  Nxc5 {[%clk 0:02:47]} 13. b4 {[%clk 0:02:47]}  Ne6 {[%clk 0:02:47]} 14. cxd5 {[%clk 0:02:42]}  Bxd5 {[%clk 0:02:41]} 15. Bb2 {[%clk 0:02:42]}  a5 {[%clk 0:02:29]} 16. b5 {[%clk 0:02:28]}  Rc8 {[%clk 0:02:14]} 17. Qd1 {[%clk 0:02:23]}  Qc7 {[%clk 0:01:42]} 18. Rc1 {[%clk 0:02:15]}  Qb7 {[%clk 0:01:40]} 19. Qe2 {[%clk 0:02:02]}  Rfe8 {[%clk 0:01:37]} 20. Qd3 {[%clk 0:01:55]}  Nc5 {[%clk 0:01:33]} 21. Qd4 {[%clk 0:01:40]}  a4 {[%clk 0:01:26]} 22. Rfe1 {[%clk 0:01:35]}  h6 {[%clk 0:01:23]} 23. Re3 {[%clk 0:01:16]}  Rcd8 {[%clk 0:01:20]} 24. Qc3 {[%clk 0:01:10]}  Nce4 {[%clk 0:01:12]} 25. Nxe4 {[%clk 0:01:07]}  Bxe4 {[%clk 0:01:13]} 26. Qc7 {[%clk 0:00:20]}  Rd1+ {[%clk 0:01:06]} 27. Re1 {[%clk 0:00:18]}  Rxe1+ {[%clk 0:00:59]} 28. Nxe1 {[%clk 0:00:18]}  Bxg2 {[%clk 0:00:38]} 29. Nxg2 {[%clk 0:00:19]}  Qxc7 {[%clk 0:00:29]} 30. Rxc7 {[%clk 0:00:20]}  Nd5 {[%clk 0:00:30]} 31. Rc4 {[%clk 0:00:19]}  Bc5 {[%clk 0:00:28]} 32. Kf1 {[%clk 0:00:18]}  Nc7 {[%clk 0:00:27]} 33. Rxa4 {[%clk 0:00:17]}  Nxb5 {[%clk 0:00:27]} 34. Nf4 {[%clk 0:00:16]}  Rd8 {[%clk 0:00:26]} 35. Ke2 {[%clk 0:00:15]}  f6 {[%clk 0:00:22]} 36. Nd3 {[%clk 0:00:15]}  Bf8 {[%clk 0:00:20]} 37. Nb4 {[%clk 0:00:15]}  Kf7 {[%clk 0:00:20]} 38. Nc6 {[%clk 0:00:14]}  Rc8 {[%clk 0:00:20]} 39. Nb4 {[%clk 0:00:10]}  Bc5 {[%clk 0:00:20]} 40. Nd3 {[%clk 0:00:10]}  Rd8 {[%clk 0:00:19]} 41. Nxc5 {[%clk 0:00:10]}  bxc5 {[%clk 0:00:20]} 42. Rc4 {[%clk 0:00:09]}  Rd5 {[%clk 0:00:20]} 43. a4 {[%clk 0:00:09]}  Nc7 {[%clk 0:00:20]} 44. Ba3 {[%clk 0:00:08]}  Na6 {[%clk 0:00:21]} 45. Ke3 {[%clk 0:00:08]}  Ke6 {[%clk 0:00:21]} 46. f4 {[%clk 0:00:08]}  f5 {[%clk 0:00:21]} 47. Kf3 {[%clk 0:00:08]}  g5 {[%clk 0:00:21]} 48. Ke3 {[%clk 0:00:08]}  g4 {[%clk 0:00:21]} 49. Bb2 {[%clk 0:00:07]}  h5 {[%clk 0:00:21]} 50. Ba3 {[%clk 0:00:07]}  Kd6 {[%clk 0:00:21]} 51. Bb2 {[%clk 0:00:05]}  Kc6 {[%clk 0:00:21]} 52. Be5 {[%clk 0:00:06]}  Kb6 {[%clk 0:00:20]} 53. Bc3 {[%clk 0:00:06]}  Nb8 {[%clk 0:00:19]} 54. Be5 {[%clk 0:00:07]}  Nc6 {[%clk 0:00:19]} 55. Bc3 {[%clk 0:00:07]}  Ka6 {[%clk 0:00:19]} 56. Ke2 {[%clk 0:00:06]}  Na5 {[%clk 0:00:20]} 57. Bxa5 {[%clk 0:00:06]}  Kxa5 {[%clk 0:00:20]} 58. Ke3 {[%clk 0:00:06]}  Ka6 {[%clk 0:00:20]} 59. Ke2 {[%clk 0:00:07]}  Kb6 {[%clk 0:00:20]} 60. Ke3 {[%clk 0:00:06]}  Ka5 {[%clk 0:00:20]} 61. Ke2 {[%clk 0:00:07]}  Kb6 {[%clk 0:00:16]} 62. Ke3 {[%clk 0:00:07]}  Kc6 {[%clk 0:00:17]} 63. Ke2 {[%clk 0:00:07]}  Rd8 {[%clk 0:00:18]} 64. Ke3 {[%clk 0:00:08]}  Kd5 {[%clk 0:00:18]} 65. Rc2 {[%clk 0:00:08]}  Re8+ {[%clk 0:00:18]} 66. Kf2 {[%clk 0:00:08]}  Re4 {[%clk 0:00:19]} 67. Rd2+ {[%clk 0:00:08]}  Kc6 {[%clk 0:00:20]} 68. Re2 {[%clk 0:00:08]}  Rxa4 {[%clk 0:00:20]} 69. Re6+ {[%clk 0:00:08]}  Kd5 {[%clk 0:00:20]} 70. Re5+ {[%clk 0:00:09]}  Kd4 {[%clk 0:00:21]} 71. Rxf5 {[%clk 0:00:09]}  Ra2+ {[%clk 0:00:22]} 72. Kg1 {[%clk 0:00:09]}  c4 {[%clk 0:00:22]} 73. Rxh5 {[%clk 0:00:09]}  Ke3 {[%clk 0:00:23]} 74. Rc5 {[%clk 0:00:08]}  Kf3 {[%clk 0:00:23]} 75. Rxc4 {[%clk 0:00:05]}  Ra1+ {[%clk 0:00:23]} 76. Rc1 {[%clk 0:00:06]}  Rxc1# {[%clk 0:00:24]} 0-1

[Event "December 5 Early 2023"]
[Site "https://www.chess.com"]
[Date "2023.12.05"]
[Round "7"]
[White "Llari, Marc"]
[Black "Eilers, Stefan"]
[Result "0-1"]
[Board "155"]
[TimeControl "180+1"]
[WhiteFideId "651044269"]
[BlackFideId "4609565"]
[WhiteElo "2288"]
[BlackElo "2433"]
[WhiteTeam "FRA"]
[BlackTeam "GER"]
[WhiteClock "0:00:07"]
[BlackClock "0:00:08"]

1. d4 {[%clk 0:02:55]}  d5 {[%clk 0:02:59]} 2. Nf3 {[%clk 0:02:51]}  e6 {[%clk 0:02:58]} 3. g3 {[%clk 0:02:47]}  c5 {[%clk 0:02:58]} 4. Bg2 {[%clk 0:02:38]}  cxd4 {[%clk 0:02:58]} 5. Nxd4 {[%clk 0:02:39]}  e5 {[%clk 0:02:58]} 6. Nb3 {[%clk 0:02:38]}  Nf6 {[%clk 0:02:54]} 7. O-O {[%clk 0:02:36]}  h6 {[%clk 0:02:49]} 8. Nc3 {[%clk 0:02:22]}  Be6 {[%clk 0:02:47]} 9. f4 {[%clk 0:02:15]}  e4 {[%clk 0:02:34]} 10. Be3 {[%clk 0:01:54]}  Nc6 {[%clk 0:02:30]} 11. h3 {[%clk 0:01:40]}  Be7 {[%clk 0:02:17]} 12. f5 {[%clk 0:01:10]}  Bc8 {[%clk 0:02:12]} 13. g4 {[%clk 0:01:09]}  O-O {[%clk 0:02:08]} 14. Qd2 {[%clk 0:01:08]}  Ne5 {[%clk 0:02:07]} 15. Rad1 {[%clk 0:01:01]}  Nc4 {[%clk 0:02:03]} 16. Qc1 {[%clk 0:01:02]}  a5 {[%clk 0:01:37]} 17. Bd4 {[%clk 0:00:55]}  a4 {[%clk 0:01:32]} 18. Nd2 {[%clk 0:00:54]}  Nd6 {[%clk 0:01:17]} 19. e3 {[%clk 0:00:49]}  Qa5 {[%clk 0:01:11]} 20. a3 {[%clk 0:00:49]}  Rd8 {[%clk 0:01:03]} 21. Na2 {[%clk 0:00:45]}  Nb5 {[%clk 0:00:57]} 22. Bxf6 {[%clk 0:00:17]}  Bxf6 {[%clk 0:00:57]} 23. Nb1 {[%clk 0:00:18]}  Qb6 {[%clk 0:00:48]} 24. c3 {[%clk 0:00:17]}  Bd7 {[%clk 0:00:38]} 25. Nb4 {[%clk 0:00:17]}  Bc6 {[%clk 0:00:37]} 26. Kh1 {[%clk 0:00:16]}  Nd6 {[%clk 0:00:33]} 27. Rfe1 {[%clk 0:00:16]}  Nc4 {[%clk 0:00:33]} 28. Bf1 {[%clk 0:00:15]}  Ne5 {[%clk 0:00:31]} 29. Nxc6 {[%clk 0:00:14]}  bxc6 {[%clk 0:00:30]} 30. Be2 {[%clk 0:00:14]}  Rab8 {[%clk 0:00:27]} 31. Rd2 {[%clk 0:00:15]}  Bg5 {[%clk 0:00:25]} 32. Rc2 {[%clk 0:00:14]}  Bxe3 {[%clk 0:00:23]} 33. Qd1 {[%clk 0:00:15]}  Bg5 {[%clk 0:00:21]} 34. Kg2 {[%clk 0:00:14]}  c5 {[%clk 0:00:17]} 35. Bf1 {[%clk 0:00:13]}  Nf3 {[%clk 0:00:15]} 36. Ree2 {[%clk 0:00:13]}  Qc6 {[%clk 0:00:13]} 37. Rf2 {[%clk 0:00:10]}  d4 {[%clk 0:00:10]} 38. cxd4 {[%clk 0:00:10]}  Nxd4 {[%clk 0:00:08]} 39. Rc4 {[%clk 0:00:05]}  e3+ {[%clk 0:00:09]} 40. Rf3 {[%clk 0:00:06]}  Nxf3 {[%clk 0:00:09]} 41. Qxf3 {[%clk 0:00:06]}  Qxf3+ {[%clk 0:00:09]} 42. Kxf3 {[%clk 0:00:07]}  Rd1 {[%clk 0:00:08]} 43. Be2 {[%clk 0:00:06]}  Rxb1 {[%clk 0:00:08]} 44. Rxa4 {[%clk 0:00:07]}  R1xb2 {[%clk 0:00:08]} 45. Ra7 {[%clk 0:00:07]}  Rd2 {[%clk 0:00:08]} 46. a4 {[%clk 0:00:07]}  Rbb2 {[%clk 0:00:08]} 47. Ra8+ {[%clk 0:00:07]}  Kh7 {[%clk 0:00:09]} 48. f6 {[%clk 0:00:08]}  Rxe2 {[%clk 0:00:08]} 49. fxg7 {[%clk 0:00:09]}  Kxg7 {[%clk 0:00:09]} 50. Ke4 {[%clk 0:00:07]}  Rf2 {[%clk 0:00:08]} 0-1

[Event "December 5 Early 2023"]
[Site "https://www.chess.com"]
[Date "2023.12.05"]
[Round "7"]
[White "Hon, Eric"]
[Black "Miszler, Levente"]
[Result "1-0"]
[Board "157"]
[TimeControl "180+1"]
[WhiteFideId "2097117"]
[BlackFideId "763276"]
[WhiteElo "2264"]
[BlackElo "2428"]
[WhiteTeam "USA"]
[BlackTeam "HUN"]
[WhiteClock "0:00:18"]
[BlackClock "0:00:30"]

1. e4 {[%clk 0:03:00]}  c5 {[%clk 0:02:59]} 2. Nf3 {[%clk 0:02:59]}  d6 {[%clk 0:02:59]} 3. d4 {[%clk 0:03:00]}  cxd4 {[%clk 0:03:00]} 4. Nxd4 {[%clk 0:03:00]}  Nf6 {[%clk 0:03:00]} 5. Bd3 {[%clk 0:03:01]}  g6 {[%clk 0:02:59]} 6. O-O {[%clk 0:02:59]}  Bg7 {[%clk 0:03:00]} 7. h3 {[%clk 0:02:58]}  O-O {[%clk 0:03:00]} 8. c4 {[%clk 0:02:57]}  Nc6 {[%clk 0:03:01]} 9. Be3 {[%clk 0:02:42]}  Ng4 {[%clk 0:02:39]} 10. hxg4 {[%clk 0:01:52]}  Nxd4 {[%clk 0:02:39]} 11. Nc3 {[%clk 0:01:48]}  Be6 {[%clk 0:02:26]} 12. Rc1 {[%clk 0:01:26]}  Rc8 {[%clk 0:02:26]} 13. b3 {[%clk 0:01:25]}  Nc6 {[%clk 0:02:24]} 14. Be2 {[%clk 0:01:17]}  a6 {[%clk 0:02:21]} 15. Qd2 {[%clk 0:01:16]}  Ne5 {[%clk 0:02:07]} 16. f4 {[%clk 0:01:15]}  Nxg4 {[%clk 0:02:06]} 17. f5 {[%clk 0:01:00]}  Nxe3 {[%clk 0:02:06]} 18. Qxe3 {[%clk 0:00:58]}  Bd7 {[%clk 0:02:03]} 19. Nd5 {[%clk 0:00:54]}  Bc6 {[%clk 0:02:04]} 20. fxg6 {[%clk 0:00:33]}  hxg6 {[%clk 0:02:02]} 21. Bg4 {[%clk 0:00:33]}  Bd7 {[%clk 0:01:54]} 22. Bxd7 {[%clk 0:00:31]}  Qxd7 {[%clk 0:01:55]} 23. Nb6 {[%clk 0:00:31]}  Qe6 {[%clk 0:01:56]} 24. Nxc8 {[%clk 0:00:31]}  Rxc8 {[%clk 0:01:56]} 25. Rcd1 {[%clk 0:00:30]}  b5 {[%clk 0:01:49]} 26. cxb5 {[%clk 0:00:26]}  axb5 {[%clk 0:01:48]} 27. Rc1 {[%clk 0:00:25]}  Ra8 {[%clk 0:01:47]} 28. Rc2 {[%clk 0:00:23]}  Qe5 {[%clk 0:01:40]} 29. Qf2 {[%clk 0:00:20]}  Qe6 {[%clk 0:01:34]} 30. Rfc1 {[%clk 0:00:20]}  Qxe4 {[%clk 0:01:31]} 31. Rc8+ {[%clk 0:00:19]}  Rxc8 {[%clk 0:01:30]} 32. Rxc8+ {[%clk 0:00:20]}  Kh7 {[%clk 0:01:31]} 33. Qxf7 {[%clk 0:00:20]}  Qe1+ {[%clk 0:01:29]} 34. Kh2 {[%clk 0:00:19]}  Qh4+ {[%clk 0:01:28]} 35. Kg1 {[%clk 0:00:20]}  Qe1+ {[%clk 0:01:24]} 36. Kh2 {[%clk 0:00:20]}  Kh6 {[%clk 0:01:25]} 37. Qf4+ {[%clk 0:00:20]}  Kh7 {[%clk 0:01:23]} 38. Kh3 {[%clk 0:00:16]}  Qh1+ {[%clk 0:01:17]} 39. Qh2 {[%clk 0:00:05]}  Qd1 {[%clk 0:01:04]} 40. Qf4 {[%clk 0:00:05]}  Qd3+ {[%clk 0:00:53]} 41. Qg3 {[%clk 0:00:05]}  Qf5+ {[%clk 0:00:54]} 42. Qg4 {[%clk 0:00:06]}  Qf1 {[%clk 0:00:47]} 43. Qh4+ {[%clk 0:00:05]}  Bh6 {[%clk 0:00:47]} 44. Qxe7+ {[%clk 0:00:06]}  Bg7 {[%clk 0:00:48]} 45. Qh4+ {[%clk 0:00:07]}  Bh6 {[%clk 0:00:48]} 46. Rh8+ {[%clk 0:00:07]}  Kxh8 {[%clk 0:00:47]} 47. Qxh6+ {[%clk 0:00:08]}  Kg8 {[%clk 0:00:47]} 48. Qxg6+ {[%clk 0:00:09]}  Kh8 {[%clk 0:00:47]} 49. Qh5+ {[%clk 0:00:09]}  Kg8 {[%clk 0:00:47]} 50. Qg4+ {[%clk 0:00:09]}  Kh8 {[%clk 0:00:46]} 51. Qh4+ {[%clk 0:00:09]}  Kg8 {[%clk 0:00:46]} 52. Qg3+ {[%clk 0:00:10]}  Kh8 {[%clk 0:00:46]} 53. Qxd6 {[%clk 0:00:10]}  Qf5+ {[%clk 0:00:45]} 54. g4 {[%clk 0:00:10]}  Qf1+ {[%clk 0:00:42]} 55. Kh4 {[%clk 0:00:10]}  Qf2+ {[%clk 0:00:38]} 56. Kh5 {[%clk 0:00:08]}  Qf7+ {[%clk 0:00:34]} 57. Qg6 {[%clk 0:00:08]}  Qd5+ {[%clk 0:00:35]} 58. Qg5 {[%clk 0:00:06]}  Qf7+ {[%clk 0:00:31]} 59. Qg6 {[%clk 0:00:06]}  Qd5+ {[%clk 0:00:31]} 60. g5 {[%clk 0:00:06]}  Qh1+ {[%clk 0:00:29]} 61. Kg4 {[%clk 0:00:06]}  Qg2+ {[%clk 0:00:29]} 62. Kf5 {[%clk 0:00:07]}  Qd5+ {[%clk 0:00:26]} 63. Kf6 {[%clk 0:00:07]}  Qd6+ {[%clk 0:00:27]} 64. Kf7 {[%clk 0:00:07]}  Qd7+ {[%clk 0:00:24]} 65. Kf8 {[%clk 0:00:07]}  Qd8+ {[%clk 0:00:24]} 66. Qe8 {[%clk 0:00:07]}  Qxg5 {[%clk 0:00:25]} 67. Kf7+ {[%clk 0:00:07]}  Kh7 {[%clk 0:00:25]} 68. Qe4+ {[%clk 0:00:08]}  Kh6 {[%clk 0:00:21]} 69. Qh1+ {[%clk 0:00:08]}  Qh5+ {[%clk 0:00:21]} 70. Qxh5+ {[%clk 0:00:09]}  Kxh5 {[%clk 0:00:22]} 71. Ke6 {[%clk 0:00:09]}  b4 {[%clk 0:00:23]} 72. Kd5 {[%clk 0:00:10]}  Kg5 {[%clk 0:00:24]} 73. Kc4 {[%clk 0:00:11]}  Kf5 {[%clk 0:00:24]} 74. Kxb4 {[%clk 0:00:12]}  Ke6 {[%clk 0:00:25]} 75. Ka5 {[%clk 0:00:13]}  Kd7 {[%clk 0:00:26]} 76. Ka6 {[%clk 0:00:14]}  Kc7 {[%clk 0:00:27]} 77. b4 {[%clk 0:00:15]}  Kb8 {[%clk 0:00:27]} 78. b5 {[%clk 0:00:15]}  Ka8 {[%clk 0:00:28]} 79. a4 {[%clk 0:00:15]}  Kb8 {[%clk 0:00:29]} 80. a5 {[%clk 0:00:16]}  Ka8 {[%clk 0:00:30]} 81. b6 {[%clk 0:00:16]}  Kb8 {[%clk 0:00:31]} 82. b7 {[%clk 0:00:17]}  Kc7 {[%clk 0:00:30]} 83. Ka7 {[%clk 0:00:18]} 1-0

[Event "December 5 Early 2023"]
[Site "https://www.chess.com"]
[Date "2023.12.05"]
[Round "7"]
[White "Verbin, Valentina"]
[Black "Kovalyov, Eduard"]
[Result "0-1"]
[Board "159"]
[TimeControl "180+1"]
[WhiteFideId "13905910"]
[BlackFideId "14118033"]
[WhiteElo "2226"]
[BlackElo "2421"]
[WhiteTeam "MDA"]
[BlackTeam "UKR"]
[WhiteClock "0:00:00"]
[BlackClock "0:00:05"]

1. e4 {[%clk 0:03:00]}  e5 {[%clk 0:02:56]} 2. Nf3 {[%clk 0:03:00]}  Nc6 {[%clk 0:02:56]} 3. Bb5 {[%clk 0:02:59]}  a6 {[%clk 0:02:57]} 4. Ba4 {[%clk 0:02:59]}  Nf6 {[%clk 0:02:57]} 5. O-O {[%clk 0:03:00]}  Be7 {[%clk 0:02:56]} 6. Re1 {[%clk 0:02:58]}  b5 {[%clk 0:02:55]} 7. Bb3 {[%clk 0:02:59]}  O-O {[%clk 0:02:56]} 8. c3 {[%clk 0:02:51]}  d5 {[%clk 0:02:56]} 9. exd5 {[%clk 0:02:50]}  Nxd5 {[%clk 0:02:56]} 10. Nxe5 {[%clk 0:02:50]}  Nxe5 {[%clk 0:02:57]} 11. Rxe5 {[%clk 0:02:51]}  c6 {[%clk 0:02:57]} 12. d3 {[%clk 0:02:48]}  Bd6 {[%clk 0:02:56]} 13. Re1 {[%clk 0:02:47]}  Qh4 {[%clk 0:02:53]} 14. g3 {[%clk 0:02:47]}  Qh3 {[%clk 0:02:51]} 15. Qf3 {[%clk 0:02:45]}  Bg4 {[%clk 0:02:31]} 16. Qg2 {[%clk 0:02:45]}  Rae8 {[%clk 0:02:30]} 17. Rxe8 {[%clk 0:01:59]}  Rxe8 {[%clk 0:02:30]} 18. Qxh3 {[%clk 0:01:35]}  Bxh3 {[%clk 0:02:25]} 19. Bd2 {[%clk 0:01:31]}  Bc5 {[%clk 0:01:55]} 20. d4 {[%clk 0:01:25]}  Bd6 {[%clk 0:01:55]} 21. a4 {[%clk 0:01:12]}  b4 {[%clk 0:01:04]} 22. Bxd5 {[%clk 0:00:57]}  cxd5 {[%clk 0:01:01]} 23. cxb4 {[%clk 0:00:57]}  Rb8 {[%clk 0:00:43]} 24. b5 {[%clk 0:00:31]}  axb5 {[%clk 0:00:31]} 25. axb5 {[%clk 0:00:31]}  h5 {[%clk 0:00:31]} 26. Nc3 {[%clk 0:00:31]}  h4 {[%clk 0:00:24]} 27. Bf4 {[%clk 0:00:15]}  Bxf4 {[%clk 0:00:20]} 28. gxf4 {[%clk 0:00:15]}  g6 {[%clk 0:00:16]} 29. Ra5 {[%clk 0:00:14]}  Be6 {[%clk 0:00:12]} 30. f3 {[%clk 0:00:14]}  Kg7 {[%clk 0:00:11]} 31. Kf2 {[%clk 0:00:14]}  Kf6 {[%clk 0:00:11]} 32. Ra6 {[%clk 0:00:13]}  Kf5 {[%clk 0:00:11]} 33. b6 {[%clk 0:00:11]}  Kxf4 {[%clk 0:00:09]} 34. Nb5 {[%clk 0:00:08]}  Bc8 {[%clk 0:00:06]} 35. Ra5 {[%clk 0:00:03]}  Rxb6 {[%clk 0:00:06]} 36. Nc3 {[%clk 0:00:02]}  Rxb2+ {[%clk 0:00:06]} 37. Kg1 {[%clk 0:00:00]}  Kxf3 {[%clk 0:00:05]} 0-1

[Event "December 5 Early 2023"]
[Site "https://www.chess.com"]
[Date "2023.12.05"]
[Round "7"]
[White "Rosh Jain"]
[Black "Palmer, Reegan"]
[Result "0-1"]
[Board "162"]
[TimeControl "180+1"]
[WhiteFideId "25789465"]
[BlackFideId "14322145"]
[WhiteElo "2409"]
[BlackElo "2222"]
[WhiteTeam "IND"]
[BlackTeam "RSA"]
[WhiteClock "0:01:35"]
[BlackClock "0:02:05"]

1. e4 {[%clk 0:03:00]}  c5 {[%clk 0:02:59]} 2. Nf3 {[%clk 0:03:00]}  d6 {[%clk 0:02:50]} 3. d4 {[%clk 0:03:00]}  cxd4 {[%clk 0:02:45]} 4. Nxd4 {[%clk 0:03:00]}  Nf6 {[%clk 0:02:30]} 5. Nc3 {[%clk 0:03:00]}  a6 {[%clk 0:02:30]} 6. Bc4 {[%clk 0:02:59]}  e6 {[%clk 0:02:26]} 7. Bb3 {[%clk 0:02:57]}  Nbd7 {[%clk 0:02:17]} 8. O-O {[%clk 0:02:56]}  Nc5 {[%clk 0:02:17]} 9. Bg5 {[%clk 0:02:56]}  Be7 {[%clk 0:02:17]} 10. Re1 {[%clk 0:02:55]}  O-O {[%clk 0:02:15]} 11. f4 {[%clk 0:02:55]}  b5 {[%clk 0:02:15]} 12. Nc6 {[%clk 0:02:51]}  Qc7 {[%clk 0:02:15]} 13. Nxe7+ {[%clk 0:02:51]}  Qxe7 {[%clk 0:02:16]} 14. e5 {[%clk 0:02:36]}  Qa7 {[%clk 0:02:12]} 15. exf6 {[%clk 0:01:43]}  Ne4+ {[%clk 0:02:06]} 16. Kh1 {[%clk 0:01:39]}  Nf2+ {[%clk 0:02:06]} 17. Kg1 {[%clk 0:01:37]}  Nh3+ {[%clk 0:02:06]} 18. Kh1 {[%clk 0:01:35]}  Qg1+ {[%clk 0:02:05]} 0-1

[Event "December 5 Early 2023"]
[Site "https://www.chess.com"]
[Date "2023.12.05"]
[Round "7"]
[White "Fernandez Siles, Luis"]
[Black "Phillips, Rene"]
[Result "1-0"]
[Board "167"]
[TimeControl "180+1"]
[WhiteFideId "2209420"]
[BlackFideId "2056275"]
[WhiteElo "2293"]
[BlackElo "1910"]
[WhiteTeam "ESP"]
[BlackTeam "USA"]
[WhiteClock "0:00:23"]
[BlackClock "0:00:00"]

1. e4 {[%clk 0:03:00]}  Nc6 {[%clk 0:02:53]} 2. Nf3 {[%clk 0:02:59]}  d5 {[%clk 0:02:52]} 3. exd5 {[%clk 0:02:58]}  Qxd5 {[%clk 0:02:51]} 4. Nc3 {[%clk 0:02:58]}  Qa5 {[%clk 0:02:51]} 5. Bb5 {[%clk 0:02:57]}  Bg4 {[%clk 0:02:50]} 6. h3 {[%clk 0:02:55]}  Bd7 {[%clk 0:02:43]} 7. O-O {[%clk 0:02:46]}  a6 {[%clk 0:02:42]} 8. Bc4 {[%clk 0:02:21]}  Nf6 {[%clk 0:02:33]} 9. d3 {[%clk 0:02:16]}  Qh5 {[%clk 0:02:30]} 10. Re1 {[%clk 0:02:05]}  O-O-O {[%clk 0:02:22]} 11. Ng5 {[%clk 0:01:56]}  Qxd1 {[%clk 0:01:52]} 12. Nxd1 {[%clk 0:01:45]}  Nd4 {[%clk 0:01:47]} 13. Ne3 {[%clk 0:01:37]}  Be8 {[%clk 0:01:38]} 14. Bxf7 {[%clk 0:01:33]}  h6 {[%clk 0:01:32]} 15. Bxe8 {[%clk 0:01:32]}  Rxe8 {[%clk 0:01:23]} 16. Nf7 {[%clk 0:01:27]}  Rg8 {[%clk 0:01:22]} 17. c3 {[%clk 0:01:24]}  Nc6 {[%clk 0:01:14]} 18. d4 {[%clk 0:01:23]}  e6 {[%clk 0:01:07]} 19. Nc4 {[%clk 0:01:19]}  Nd5 {[%clk 0:00:55]} 20. Nfe5 {[%clk 0:01:04]}  Nd8 {[%clk 0:00:43]} 21. g3 {[%clk 0:00:57]}  Bd6 {[%clk 0:00:42]} 22. Ne3 {[%clk 0:00:55]}  Rgf8 {[%clk 0:00:30]} 23. Nxd5 {[%clk 0:00:51]}  exd5 {[%clk 0:00:29]} 24. f4 {[%clk 0:00:50]}  Nf7 {[%clk 0:00:21]} 25. Bd2 {[%clk 0:00:48]}  Nd8 {[%clk 0:00:17]} 26. Nd3 {[%clk 0:00:45]}  Ne6 {[%clk 0:00:15]} 27. Kg2 {[%clk 0:00:42]}  g5 {[%clk 0:00:14]} 28. fxg5 {[%clk 0:00:32]}  Nxg5 {[%clk 0:00:12]} 29. Bxg5 {[%clk 0:00:30]}  hxg5 {[%clk 0:00:11]} 30. Rxe8+ {[%clk 0:00:29]}  Rxe8 {[%clk 0:00:11]} 31. Kf3 {[%clk 0:00:25]}  Rf8+ {[%clk 0:00:09]} 32. Kg4 {[%clk 0:00:25]}  Be7 {[%clk 0:00:06]} 33. Re1 {[%clk 0:00:24]}  Kd8 {[%clk 0:00:05]} 34. Re5 {[%clk 0:00:23]}  c6 {[%clk 0:00:00]} 35. Rf5 {[%clk 0:00:23]} 1-0